bitfinex/quotes_SOLUSD_20241225
["timestamp","ask_amount","ask_price","bid_price","bid_amount"]
[1735158339356,9.6437649,199.25,199.18,9.6437649]
[1735158339954,9.6437649,199.26,199.18,9.6437649]
[1735158340135,6.3692,199.27,199.2,9.6437649]
[1735158340340,16.0129649,199.27,199.2,9.6437649]
[1735158340555,6.3692,199.27,199.22,9.6437649]
[1735158340763,1.7178,199.29,199.25,9.6437649]
[1735158340930,1.7178,199.29,199.26,9.6437649]
[1735158341360,1.7178,199.29,199.27,9.6437649]
[1735158341539,6.3692,199.32,199.28,9.6437649]
[1735158341862,6.3692,199.37,199.31,9.6437649]
[1735158342436,6.3692,199.37,199.32,9.6437649]
[1735158342954,6.3692,199.37,199.31,9.6437649]
[1735158343658,9.6437649,199.35,199.26,23.776884]
[1735158343855,9.6437649,199.35,199.28,9.6437649]
[1735158344036,6.3692,199.37,199.3,9.6437649]
[1735158344238,6.3692,199.37,199.31,9.6437649]
[1735158344928,1.7178,199.38,199.33,9.6437649]
[1735158345126,6.5085,199.42,199.35,9.6437649]
[1735158345348,6.5085,199.42,199.36,9.6437649]
[1735158345939,9.6437649,199.4,199.3,23.776884]
[1735158346144,9.6437649,199.4,199.33,9.6437649]
[1735158346348,22.1806649,199.41,199.34,9.6437649]
[1735158346556,12.5369,199.41,199.35,9.6437649]
[1735158346757,6.5085,199.42,199.35,9.6437649]
[1735158347240,6.5085,199.42,199.36,9.6437649]
[1735158347559,6.5085,199.42,199.38,9.6437649]
[1735158347860,25.0636,199.5,199.34,0.12549]
[1735158347861,16.1522649,199.47,199.34,0.12549]
[1735158348032,9.6437649,199.46,199.38,9.6437649]
[1735158348432,9.6437649,199.46,199.39,9.6437649]
[1735158348633,16.1522649,199.47,199.39,9.6437649]
[1735158348957,16.1522649,199.47,199.35,20.0]
[1735158349157,16.1522649,199.47,199.39,9.6437649]
[1735158349476,16.1522649,199.47,199.4,9.6437649]
[1735158349641,6.5085,199.47,199.4,9.6437649]
[1735158349837,6.5085,199.47,199.41,9.6437649]
[1735158350041,6.5085,199.47,199.42,9.6437649]
[1735158350569,9.6437649,199.44,199.32,23.776884]
[1735158350873,9.6437649,199.41,199.29,0.75228605]
[1735158351161,9.6437649,199.42,199.35,9.6437649]
[1735158351351,20.0,199.43,199.36,9.6437649]
[1735158351553,9.6437649,199.44,199.37,9.6437649]
[1735158351860,9.6437649,199.43,199.32,0.12549]
[1735158352043,9.6437649,199.44,199.37,9.6437649]
[1735158352368,15.11005514,199.44,199.37,15.11005514]
[1735158352658,21.61855514,199.47,199.4,15.11005514]
[1735158352856,6.5085,199.47,199.42,15.11005514]
[1735158353370,1.6558,199.48,199.42,15.11005514]
[1735158353656,1.6558,199.48,199.45,15.11005514]
[1735158353861,21.61855514,199.52,199.45,15.11005514]
[1735158354057,6.5085,199.52,199.46,15.11005514]
[1735158354262,1.6558,199.53,199.4,30.0]
[1735158354263,1.6558,199.53,199.47,15.11005514]
[1735158354442,1.6558,199.53,199.48,15.11005514]
[1735158355058,12.5291,199.54,199.49,15.11005514]
[1735158355246,15.11005514,199.56,199.49,15.11005514]
[1735158355439,15.11005514,199.56,199.43,15.11005514]
[1735158355440,21.61855514,199.57,199.5,15.11005514]
[1735158355639,15.11005514,199.56,199.49,15.11005514]
[1735158355860,15.11005514,199.53,199.46,15.11005514]
[1735158356290,15.11005514,199.54,199.47,15.11005514]
[1735158356573,15.11005514,199.56,199.49,15.11005514]
[1735158356771,21.61855514,199.57,199.5,15.11005514]
[1735158357066,6.5085,199.57,199.51,15.11005514]
[1735158357363,6.5085,199.57,199.52,15.11005514]
[1735158357568,1.6558,199.58,199.53,15.11005514]
[1735158358433,15.11005514,199.57,199.49,15.11005514]
[1735158358639,15.11005514,199.56,199.48,15.11005514]
[1735158359339,15.11005514,199.56,199.49,15.11005514]
[1735158359768,15.11005514,199.57,199.5,15.11005514]
[1735158359953,1.6558,199.58,199.51,15.11005514]
[1735158360155,1.6558,199.58,199.52,15.11005514]
[1735158360353,1.6558,199.58,199.53,15.11005514]
[1735158360743,21.61855514,199.61,199.54,15.11005514]
[1735158360965,15.11005514,199.6,199.53,15.11005514]
[1735158361274,6.5085,199.61,199.55,15.11005514]
[1735158361447,1.6796,199.63,199.58,15.11005514]
[1735158362567,1.6796,199.63,199.56,15.11005514]
[1735158363170,15.11005514,199.62,199.55,15.11005514]
[1735158363374,15.11005514,199.6,199.53,15.11005514]
[1735158363561,15.11005514,199.59,199.52,15.11005514]
[1735158363751,15.11005514,199.57,199.49,15.11005514]
[1735158363954,15.11005514,199.56,199.48,15.11005514]
[1735158364141,15.11005514,199.56,199.49,15.11005514]
[1735158364679,21.17065514,199.56,199.48,15.11005514]
[1735158364877,15.11005514,199.54,199.47,15.11005514]
[1735158365177,16.78965514,199.53,199.45,15.11005514]
[1735158365483,16.78965514,199.53,199.46,15.11005514]
[1735158366554,15.11005514,199.52,199.45,15.11005514]
[1735158366755,15.11005514,199.49,199.42,15.11005514]
[1735158366960,15.11005514,199.49,199.41,15.11005514]
[1735158367773,15.11005514,199.49,199.42,15.11005514]
[1735158368477,15.11005514,199.5,199.42,15.11005514]
[1735158369981,27.64195514,199.49,199.41,15.11005514]
[1735158370188,15.11005514,199.47,199.4,15.11005514]
[1735158370682,15.11005514,199.47,199.39,15.11005514]
[1735158371855,1.6796,199.44,199.37,15.11005514]
[1735158372580,16.78965514,199.44,199.37,15.11005514]
[1735158372881,1.6796,199.44,199.37,15.11005514]
[1735158373856,16.78965514,199.44,199.36,15.11005514]
[1735158382906,16.78965514,199.44,199.33,23.776884]
[1735158383063,16.78965514,199.44,199.35,15.11005514]
[1735158383966,15.11005514,199.42,199.35,15.11005514]
[1735158386498,15.11005514,199.42,199.33,15.11005514]
[1735158387292,12.5369,199.41,199.33,15.11005514]
[1735158387583,15.11005514,199.39,199.31,15.11005514]
[1735158388394,15.11005514,199.39,199.32,15.11005514]
[1735158388592,15.11005514,199.4,199.32,15.11005514]
[1735158394210,9.67424499,199.4,199.32,9.67424499]
[1735158395079,9.67424499,199.4,199.28,23.776884]
[1735158395298,9.67424499,199.4,199.32,9.67424499]
[1735158395987,20.0,199.42,199.32,9.67424499]
[1735158396183,20.0,199.42,199.36,9.67424499]
[1735158396588,29.67424499,199.42,199.35,9.67424499]
[1735158397012,29.67424499,199.42,199.34,9.67424499]
[1735158397501,29.67424499,199.42,199.3,0.12549]
[1735158397715,9.67424499,199.41,199.33,9.67424499]
[1735158398408,12.5362,199.43,199.35,9.67424499]
[1735158398581,1.6796,199.44,199.39,9.67424499]
[1735158398788,1.6796,199.44,199.4,9.67424499]
[1735158399509,1.6796,199.44,199.41,9.67424499]
[1735158399694,18.6148,199.5,199.41,9.67424499]
[1735158399892,18.6148,199.5,199.2,37.916957]
[1735158399893,1.684,199.49,199.44,9.67424499]
[1735158400115,1.684,199.49,199.45,9.67424499]
[1735158400282,1.684,199.49,199.45,15.09648278]
[1735158400788,12.5274,199.57,199.47,15.09648278]
[1735158401331,15.09648278,199.54,199.47,15.09648278]
[1735158404311,12.5274,199.57,199.48,15.09648278]
[1735158404312,15.09648278,199.56,199.48,15.09648278]
[1735158404484,7.7675,199.58,199.52,15.09648278]
[1735158404689,7.7675,199.58,199.53,15.09648278]
[1735158405623,15.09648278,199.57,199.5,15.09648278]
[1735158405795,15.09648278,199.55,199.48,15.09648278]
[1735158406323,15.09648278,199.54,199.44,20.0]
[1735158406512,15.09648278,199.54,199.42,23.902374]
[1735158406513,15.09648278,199.54,199.47,15.09648278]
[1735158406700,15.09648278,199.55,199.48,15.09648278]
[1735158408124,15.09648278,199.57,199.5,15.09648278]
[1735158408325,7.7675,199.58,199.52,15.09648278]
[1735158408512,7.7675,199.58,199.53,15.09648278]
[1735158408513,1.684,199.58,199.53,15.09648278]
[1735158408851,15.09648278,199.61,199.54,15.09648278]
[1735158409222,14.2865,199.62,199.55,15.09648278]
[1735158409405,16.85868278,199.62,199.55,15.09648278]
[1735158409608,1.7622,199.62,199.55,15.09648278]
[1735158409817,1.7622,199.62,199.57,15.09648278]
[1735158410011,15.09648278,199.66,199.58,15.09648278]
[1735158410222,15.09648278,199.66,199.59,15.09648278]
[1735158410411,15.09648278,199.65,199.58,15.09648278]
[1735158411028,15.09648278,199.64,199.57,15.09648278]
[1735158411823,1.7622,199.67,199.6,15.09648278]
[1735158412031,1.7622,199.67,199.63,38.87336678]
[1735158412330,1.7622,199.72,199.66,38.87336678]
[1735158412528,15.09648278,199.73,199.63,23.776884]
[1735158412529,1.7622,199.79,199.68,15.09648278]
[1735158412704,1.7622,199.79,199.64,0.12549]
[1735158412705,15.09648278,199.74,199.67,15.09648278]
[1735158413203,15.09648278,199.74,199.66,15.09648278]
[1735158413398,15.09648278,199.73,199.66,15.09648278]
[1735158413602,15.09648278,199.75,199.67,15.09648278]
[1735158413835,15.09648278,199.75,199.68,15.09648278]
[1735158414001,15.09648278,199.75,199.67,15.09648278]
[1735158414827,15.09648278,199.77,199.69,15.09648278]
[1735158415102,16.85868278,199.79,199.72,15.09648278]
[1735158415919,16.85868278,199.79,199.71,15.09648278]
[1735158416125,15.09648278,199.77,199.69,15.09648278]
[1735158416324,15.09648278,199.77,199.7,23.776884]
[1735158416515,15.09648278,199.78,199.71,38.87336678]
[1735158416725,15.09648278,199.78,199.71,23.776884]
[1735158417122,15.09648278,199.78,199.71,38.87336678]
[1735158417522,16.85868278,199.79,199.73,23.776884]
[1735158417831,15.09648278,199.77,199.7,15.09648278]
[1735158418132,1.7622,199.79,199.67,15.09648278]
[1735158418133,15.09648278,199.74,199.67,15.09648278]
[1735158418335,15.09648278,199.75,199.67,15.09648278]
[1735158418546,15.09648278,199.76,199.68,15.09648278]
[1735158419034,15.09648278,199.76,199.69,15.09648278]
[1735158419213,15.09648278,199.75,199.67,15.09648278]
[1735158419412,12.5137,199.78,199.66,15.09648278]
[1735158419413,15.09648278,199.74,199.66,15.09648278]
[1735158419906,15.09648278,199.73,199.66,15.09648278]
[1735158422243,15.09648278,199.73,199.65,15.09648278]
[1735158423535,15.09648278,199.73,199.66,15.09648278]
[1735158424339,15.09648278,199.74,199.66,15.09648278]
[1735158424935,15.09648278,199.73,199.66,15.09648278]
[1735158427021,15.09648278,199.72,199.65,15.09648278]
[1735158430951,15.09648278,199.67,199.6,15.09648278]
[1735158431251,15.09648278,199.68,199.6,15.09648278]
[1735158432942,15.09648278,199.68,199.61,15.09648278]
[1735158435554,1.702,199.7,199.61,15.09648278]
[1735158435724,16.79848278,199.7,199.61,15.09648278]
[1735158436546,15.09648278,199.68,199.61,15.09648278]
[1735158437920,27.61678278,199.68,199.61,15.09648278]
[1735158438959,15.09648278,199.66,199.59,15.09648278]
[1735158442241,15.09648278,199.67,199.59,15.09648278]
[1735158443357,12.5212,199.66,199.59,15.09648278]
[1735158443664,21.209083,199.72,199.55,1.7235]
[1735158443665,15.096483,199.72,199.65,15.09648278]
[1735158443837,1.5734,199.75,199.69,15.09648278]
[1735158444771,16.66988278,199.75,199.67,15.09648278]
[1735158445143,20.0,199.73,199.67,15.09648278]
[1735158446387,35.09648278,199.73,199.66,15.09648278]
[1735158449675,35.09648278,199.73,199.62,6.1624]
[1735158449840,35.09648278,199.73,199.63,23.776884]
[1735158450164,35.09648278,199.73,199.64,15.09648278]
[1735158450361,15.09648278,199.71,199.64,15.09648278]
[1735158450945,15.09648278,199.71,199.63,15.09648278]
[1735158451360,15.09648278,199.69,199.61,20.0]
[1735158451552,15.09648278,199.69,199.61,15.09648278]
[1735158454572,15.09648278,199.68,199.61,15.09648278]
[1735158455970,27.61708278,199.68,199.61,15.09648278]
[1735158458269,9.64671773,199.68,199.61,9.64671773]
[1735158458467,9.64671773,199.69,199.61,9.64671773]
[1735158458971,9.64671773,199.68,199.61,9.64671773]
[1735158460583,9.64671773,199.64,199.52,6.4144]
[1735158460759,9.64671773,199.64,199.56,9.64671773]
[1735158460959,9.64671773,199.63,199.55,9.64671773]
[1735158462074,9.64671773,199.63,199.52,6.4144]
[1735158462075,9.64671773,199.64,199.56,9.64671773]
[1735158463377,12.5224,199.65,199.57,9.64671773]
[1735158463547,20.0,199.64,199.6,9.64671773]
[1735158464183,14.0219,199.68,199.6,9.64671773]
[1735158464369,14.0219,199.68,199.61,9.64671773]
[1735158464552,14.0219,199.68,199.62,9.64671773]
[1735158464954,14.0219,199.68,199.61,9.64671773]
[1735158466079,9.64671773,199.67,199.61,9.64671773]
[1735158466380,12.5212,199.66,199.59,9.64671773]
[1735158468078,9.64671773,199.65,199.57,9.64671773]
[1735158468381,15.07763258,199.65,199.57,15.07763258]
[1735158472485,12.5212,199.66,199.57,15.07763258]
[1735158472683,27.59883258,199.66,199.57,15.07763258]
[1735158475787,12.5212,199.66,199.57,15.07763258]
[1735158475991,27.59883258,199.66,199.57,15.07763258]
[1735158478589,15.07763258,199.67,199.59,15.07763258]
[1735158478895,1.5019,199.68,199.62,15.07763258]
[1735158481585,16.57953258,199.68,199.62,15.07763258]
[1735158483924,1.5019,199.68,199.62,15.07763258]
[1735158485110,1.6626,199.73,199.66,15.07763258]
[1735158486075,1.6626,199.73,199.67,23.776884]
[1735158486422,1.6626,199.73,199.68,15.07763258]
[1735158487191,15.07763258,199.76,199.68,15.07763258]
[1735158487720,15.07763258,199.74,199.68,15.07763258]
[1735158488222,9.64048502,199.74,199.67,9.64048502]
[1735158489912,14.1766,199.78,199.68,23.776884]
[1735158490121,9.64048502,199.76,199.68,23.776884]
[1735158490490,9.64048502,199.76,199.69,9.64048502]
[1735158491920,9.64048502,199.74,199.66,9.64048502]
[1735158493138,22.15598502,199.76,199.68,9.64048502]
[1735158493997,22.15598502,199.76,199.69,23.776884]
[1735158494197,22.15598502,199.76,199.66,23.776884]
[1735158494409,22.15598502,199.76,199.68,9.64048502]
[1735158494792,1.6626,199.78,199.69,23.776884]
[1735158495087,1.6626,199.78,199.71,23.776884]
[1735158495497,1.6626,199.78,199.72,9.64048502]
[1735158496088,1.6626,199.78,199.73,23.776884]
[1735158496399,7.82043926,199.86,199.76,9.64048502]
[1735158496725,7.82043926,199.86,199.79,23.776884]
[1735158497112,7.82043926,199.86,199.81,23.776884]
[1735158497494,11.16628502,199.88,199.81,23.776884]
[1735158497718,11.16628502,199.88,199.8,9.64048502]
[1735158497915,1.5258,199.88,199.81,23.776884]
[1735158498221,1.5258,199.88,199.81,38.81766413]
[1735158498725,7.82043926,199.93,199.86,38.81766413]
[1735158498726,1.5258,199.93,199.86,38.81766413]
[1735158498898,1.5258,199.93,199.88,23.776884]
[1735158499300,15.04078013,199.95,199.88,23.776884]
[1735158501118,15.04078013,199.92,199.83,35.04078013]
[1735158501327,15.04078013,199.92,199.84,23.776884]
[1735158501491,1.5258,199.98,199.88,23.776884]
[1735158501697,1.5258,199.98,199.91,15.04078013]
[1735158501917,1.5258,199.98,199.92,23.776884]
[1735158502116,15.04078013,199.97,199.89,15.04078013]
[1735158502416,15.04078013,199.95,199.9,23.776884]
[1735158502618,1.5258,199.98,199.9,23.776884]
[1735158502999,1.5258,199.98,199.92,23.776884]
[1735158503626,15.04078013,199.99,199.92,23.776884]
[1735158503803,15.04078013,200.01,199.94,23.776884]
[1735158504401,15.04078013,199.99,199.94,23.776884]
[1735158504901,0.07951214,200.04,199.95,15.04078013]
[1735158505117,15.12029227,200.04,199.96,23.776884]
[1735158505730,0.07951214,200.04,199.96,23.776884]
[1735158505901,15.04078013,200.03,199.96,23.776884]
[1735158506612,15.04078013,200.03,199.98,23.776884]
[1735158507828,15.04078013,199.99,199.91,15.04078013]
[1735158508332,15.04078013,199.99,199.89,7.668]
[1735158508333,15.04078013,199.97,199.89,22.70878013]
[1735158510199,15.04078013,199.97,199.9,23.776884]
[1735158510898,12.5008,199.99,199.9,23.776884]
[1735158511124,15.04078013,199.97,199.9,23.776884]
[1735158514403,0.12549,200.02,199.9,23.776884]
[1735158514731,15.04078013,199.99,199.92,23.776884]
[1735158515606,15.04078013,199.98,199.91,23.776884]
[1735158516538,15.04078013,199.99,199.91,38.81766413]
[1735158522245,9.61715729,199.98,199.91,33.39404129]
[1735158523238,12.4981,200.03,199.91,33.39404129]
[1735158523532,12.4981,200.03,199.96,23.776884]
[1735158523533,9.61715729,200.03,199.96,23.776884]
[1735158524244,15.01982994,200.03,199.95,38.79671394]
[1735158524543,0.07951214,200.04,199.98,23.776884]
[1735158524704,0.07951214,200.04,199.99,15.14531994]
[1735158524912,0.07951214,200.04,200.02,23.776884]
[1735158525110,0.07951214,200.04,200.03,15.01982994]
[1735158525413,0.07951214,200.04,200.03,38.79671394]
[1735158525827,0.07951214,200.04,200.02,23.776884]
[1735158526042,0.07951214,200.04,200.01,23.776884]
[1735158526244,0.1223752,200.07,200.06,30.0]
[1735158526547,15.01982994,200.21,200.09,20.0]
[1735158526754,0.34027004,200.34,200.1,0.87480434]
[1735158526917,15.01982994,200.22,200.11,31.467184]
[1735158527113,15.01982994,200.22,200.15,23.776884]
[1735158527313,3.13339653,200.34,200.14,15.01982994]
[1735158527615,15.01982994,200.15,200.11,7.6903]
[1735158527820,15.01982994,200.13,200.06,6.0258]
[1735158528229,15.01982994,200.12,200.06,6.0258]
[1735158528844,15.01982994,200.14,200.07,0.12549]
[1735158529044,15.01982994,200.14,200.07,15.14531994]
[1735158529544,15.01982994,200.14,200.07,15.01982994]
[1735158530052,15.01982994,200.14,200.06,6.0258]
[1735158530351,15.01982994,200.12,200.06,6.0258]
[1735158533428,12.4902,200.16,200.06,6.0258]
[1735158533429,15.01982994,200.1,200.06,6.0258]
[1735158533816,12.4902,200.16,200.06,6.0258]
[1735158534017,15.01982994,200.1,200.06,6.0258]
[1735158534448,15.01982994,200.08,200.01,6.0258]
[1735158535221,15.01982994,200.06,200.01,6.0258]
[1735158536349,20.0,200.16,200.01,21.04562994]
[1735158536649,15.01982994,200.12,200.05,15.01982994]
[1735158536953,15.01982994,200.14,200.05,15.01982994]
[1735158537548,12.4874,200.21,200.07,15.01982994]
[1735158537848,15.01982994,200.15,200.07,15.01982994]
[1735158538029,15.01982994,200.13,200.07,15.01982994]
[1735158538228,15.01982994,200.13,200.06,23.776884]
[1735158538439,15.01982994,200.13,200.06,38.79671394]
[1735158540756,15.01982994,200.09,200.01,6.0258]
[1735158540958,15.01982994,200.09,200.01,21.04562994]
[1735158541132,15.01982994,200.11,200.03,15.01982994]
[1735158542155,15.01982994,200.13,200.03,15.01982994]
[1735158543059,15.01982994,200.11,200.03,15.01982994]
[1735158544155,15.01982994,200.08,200.01,6.0258]
[1735158544657,15.01982994,200.08,200.01,21.04562994]
[1735158547930,15.01982994,200.08,200.01,6.0258]
[1735158548664,15.01982994,200.06,200.01,6.0258]
[1735158550161,15.01982994,200.07,200.01,6.0258]
[1735158551481,15.01982994,200.04,200.01,6.0258]
[1735158551959,15.01982994,200.02,199.99,20.0]
[1735158552257,15.01982994,200.02,199.96,6.2176]
[1735158552455,15.01982994,200.04,199.96,21.23742994]
[1735158553040,15.01982994,200.02,199.96,6.2176]
[1735158553666,15.01982994,200.02,199.99,20.0]
[1735158556365,15.01982994,200.02,199.96,6.2176]
[1735158556583,15.01982994,200.0,199.96,6.2176]
[1735158556755,15.01982994,200.0,199.95,1.5857]
[1735158556943,15.01982994,199.98,199.95,1.5857]
[1735158559158,15.01982994,199.98,199.91,6.4793]
[1735158559669,15.01982994,199.96,199.91,6.4793]
[1735158559872,12.4994,200.01,199.9,1.6073]
[1735158559873,15.01982994,199.94,199.9,1.6073]
[1735158562874,15.01982994,199.94,199.89,20.0]
[1735158564475,15.01982994,199.92,199.89,20.0]
[1735158566981,15.01982994,199.92,199.86,6.4793]
[1735158568252,9.6218222,199.92,199.86,6.4793]
[1735158570789,9.6218222,199.92,199.86,16.1011222]
[1735158572258,9.6218222,199.94,199.86,16.1011222]
[1735158572790,9.6218222,199.92,199.86,16.1011222]
[1735158574089,9.6218222,199.92,199.86,6.4793]
[1735158574893,9.6218222,199.92,199.87,20.0]
[1735158575182,9.6218222,199.92,199.84,23.776884]
[1735158579991,20.0,199.99,199.89,9.6218222]
[1735158580179,9.6218222,199.97,199.9,9.6218222]
[1735158580689,9.6218222,199.96,199.89,9.6218222]
[1735158581505,9.6218222,199.94,199.87,8.52487182]
[1735158581796,9.6218222,199.94,199.88,23.776884]
[1735158582391,9.6218222,199.96,199.88,33.3987062]
[1735158583993,12.4995,200.01,199.88,33.3987062]
[1735158584192,9.6218222,199.95,199.88,33.3987062]
[1735158584800,9.6218222,199.95,199.88,23.776884]
[1735158585988,2.57058423,200.02,199.89,0.12549]
[1735158586191,9.6218222,199.96,199.88,23.776884]
[1735158591193,9.6218222,199.94,199.88,23.776884]
[1735158598918,9.6218222,199.9,199.87,7.7747]
[1735158599199,9.6218222,199.88,199.77,1.6547]
[1735158599416,9.6218222,199.8,199.77,1.6547]
[1735158599718,9.6218222,199.8,199.76,13.880857]
[1735158599897,9.6218222,199.77,199.76,13.880857]
[1735158600210,9.6218222,199.77,199.72,1.6547]
[1735158600377,9.6218222,199.73,199.72,1.6547]
[1735158600797,9.6218222,199.74,199.72,1.6547]
[1735158601710,9.6218222,199.74,199.73,20.0]
[1735158601914,9.6218222,199.74,199.72,1.6547]
[1735158602115,12.5103,199.84,199.71,6.1139]
[1735158602116,9.6218222,199.73,199.71,6.1139]
[1735158602409,9.6218222,199.72,199.68,23.902374]
[1735158602618,9.6218222,199.72,199.67,1.6547]
[1735158602792,9.6218222,199.74,199.67,1.6547]
[1735158603688,9.6218222,199.74,199.68,0.12549]
[1735158603917,9.6218222,199.74,199.69,20.0]
[1735158604212,9.6218222,199.74,199.67,1.6547]
[1735158604396,9.6218222,199.71,199.67,1.6547]
[1735158606019,9.6218222,199.71,199.66,6.1139]
[1735158608336,20.0,199.78,199.66,6.1139]
[1735158608535,23.902374,199.8,199.66,6.1139]
[1735158608706,9.6218222,199.73,199.66,6.1139]
[1735158609631,9.6218222,199.71,199.66,6.1139]
[1735158609808,9.6218222,199.71,199.65,20.0]
[1735158612934,9.6218222,199.71,199.64,20.0]
[1735158613120,9.6218222,199.69,199.64,20.0]
[1735158614536,18.85831634,199.81,199.7,20.0]
[1735158614718,15.64087853,199.81,199.74,9.6218222]
[1735158615033,15.64087853,199.81,199.75,9.6218222]
[1735158615715,9.6218222,199.83,199.75,9.6218222]
[1735158616029,9.6218222,199.82,199.75,9.6218222]
[1735158616706,9.6218222,199.82,199.74,9.6218222]
[1735158616910,9.6218222,199.79,199.71,27.7283]
[1735158617106,9.6218222,199.79,199.71,37.3501222]
[1735158617339,9.6218222,199.78,199.71,37.3501222]
[1735158617716,9.6218222,199.76,199.65,6.39218217]
[1735158617919,9.6218222,199.71,199.65,7.7283]
[1735158618135,15.07046059,199.68,199.6,7.7283]
[1735158618336,15.07046059,199.68,199.61,15.07046059]
[1735158618543,15.07046059,199.66,199.6,7.7283]
[1735158620418,12.5161,199.75,199.6,22.79876059]
[1735158620419,15.07046059,199.67,199.6,22.79876059]
[1735158620843,15.07046059,199.68,199.6,22.79876059]
[1735158621046,15.07046059,199.68,199.61,15.07046059]
[1735158621346,15.07046059,199.68,199.6,22.79876059]
[1735158621946,15.07046059,199.67,199.6,22.79876059]
[1735158622154,15.07046059,199.66,199.6,7.7283]
[1735158622951,15.07046059,199.64,199.57,15.07046059]
[1735158623149,12.5175,199.72,199.56,15.07046059]
[1735158623150,15.07046059,199.63,199.56,15.07046059]
[1735158623549,15.07046059,199.62,199.55,16.65096059]
[1735158624762,15.07046059,199.62,199.58,20.0]
[1735158624962,15.07046059,199.63,199.58,20.0]
[1735158625762,15.07046059,199.63,199.59,20.0]
[1735158626148,15.07046059,199.64,199.59,2.58340789]
[1735158626458,15.07046059,199.64,199.56,15.07046059]
[1735158626622,15.07046059,199.64,199.57,15.07046059]
[1735158626827,15.07046059,199.62,199.55,16.65096059]
[1735158627036,15.07046059,199.61,199.55,1.5805]
[1735158627231,15.07046059,199.62,199.55,1.5805]
[1735158627742,15.07046059,199.61,199.54,6.1478]
[1735158628251,15.07046059,199.58,199.51,15.07046059]
[1735158628428,15.07046059,199.61,199.53,15.07046059]
[1735158629660,15.07046059,199.6,199.53,15.07046059]
[1735158630560,15.07046059,199.61,199.54,15.07046059]
[1735158631253,15.07046059,199.61,199.53,15.07046059]
[1735158631642,18.7593,199.67,199.57,15.07046059]
[1735158631643,12.5208,199.67,199.57,15.07046059]
[1735158631861,15.07046059,199.65,199.58,15.07046059]
[1735158632038,15.07046059,199.65,199.57,15.07046059]
[1735158633058,15.07046059,199.64,199.57,15.07046059]
[1735158633249,15.07046059,199.65,199.57,15.07046059]
[1735158637440,15.07046059,199.64,199.56,15.07046059]
[1735158637853,14.24689,199.71,199.59,15.07046059]
[1735158638040,15.07046059,199.65,199.58,15.07046059]
[1735158638238,9.64825903,199.65,199.58,9.64825903]
[1735158638468,9.64825903,199.65,199.57,9.64825903]
[1735158639356,9.64825903,199.64,199.57,9.64825903]
[1735158639863,9.64825903,199.65,199.57,9.64825903]
[1735158640070,14.1214,199.71,199.58,39.54984303]
[1735158640276,9.64825903,199.66,199.58,39.54984303]
[1735158641947,9.64825903,199.64,199.58,6.1247]
[1735158645948,9.64825903,199.63,199.58,6.1247]
[1735158646579,9.64825903,199.64,199.58,6.1247]
[1735158653980,9.64825903,199.6,199.54,6.1241]
[1735158654679,38.59303612,199.65,199.5,1.5805]
[1735158654680,9.64825903,199.59,199.51,9.64825903]
[1735158655375,9.64825903,199.59,199.54,20.0]
[1735158655965,12.5233,199.63,199.5,11.22875903]
[1735158655966,9.64825903,199.58,199.5,11.22875903]
[1735158656167,9.64825903,199.55,199.5,1.5805]
[1735158656624,9.64825903,199.54,199.46,1.6149]
[1735158656759,9.64825903,199.53,199.46,11.26315903]
[1735158657471,7.78721991,199.61,199.46,11.26315903]
[1735158657472,9.64825903,199.55,199.48,9.64825903]
[1735158657975,9.64825903,199.55,199.47,29.64825903]
[1735158658366,9.64825903,199.55,199.48,9.64825903]
[1735158658573,9.64825903,199.54,199.47,20.0]
[1735158660380,12.5269,199.57,199.46,1.6149]
[1735158660589,9.64825903,199.55,199.47,9.64825903]
[1735158660772,9.64825903,199.53,199.47,9.64825903]
[1735158661501,9.64825903,199.53,199.46,1.6149]
[1735158662009,9.64825903,199.54,199.44,6.1241]
[1735158662297,9.64825903,199.46,199.41,4.30478203]
[1735158662480,23.776884,199.53,199.39,6.6413]
[1735158662481,9.64825903,199.45,199.39,6.6413]
[1735158662998,9.64825903,199.43,199.36,1.6052]
[1735158663399,9.64825903,199.41,199.36,1.6052]
[1735158663563,9.64825903,199.4,199.34,6.6413]
[1735158664997,9.64825903,199.39,199.34,6.6413]
[1735158665288,9.64825903,199.36,199.31,1.6052]
[1735158666201,15.11991245,199.36,199.31,1.6052]
[1735158667201,43.776884,199.43,199.32,15.11991245]
[1735158667400,15.11991245,199.38,199.31,16.72511245]
[1735158668008,15.11991245,199.37,199.31,1.6052]
[1735158668399,15.11991245,199.39,199.31,16.72511245]
[1735158668785,15.11991245,199.38,199.31,16.72511245]
[1735158672325,15.11991245,199.38,199.31,15.11991245]
[1735158674517,15.11991245,199.39,199.32,15.11991245]